[Event "Betsys MČR v online bleskovém šachu 2021"]
[Site "Chess.com"]
[Date "2021.04.17"]
[Round "11"]
[White "Anyna"]
[Black "Sfreedom01"]
[Result "0-1"]
[WhiteElo "879"]
[BlackElo "1337"]
[TimeControl "180+1"]
[EndTime "10:49:08 PDT"]
[Termination "Uživatel Sfreedom01 zvítězil na čas"]

1. d4 {[%clk 0:03:00.9]} 1... g6 {[%clk 0:02:59.4]} 2. c4 {[%clk 0:02:58.3]}
2... Bg7 {[%clk 0:02:59.8]} 3. Nc3 {[%clk 0:02:57.2]} 3... e6 {[%clk 0:03:00.4]}
4. Nf3 {[%clk 0:02:56.3]} 4... Ne7 {[%clk 0:03:00.8]} 5. e4 {[%clk 0:02:53.9]}
5... c6 {[%clk 0:03:00.5]} 6. e5 {[%clk 0:02:52.6]} 6... d6 {[%clk 0:03:00.2]}
7. Be2 {[%clk 0:02:45.2]} 7... dxe5 {[%clk 0:03:00.3]} 8. dxe5 {[%clk
0:02:43.4]} 8... Qxd1+ {[%clk 0:03:00.2]} 9. Bxd1 {[%clk 0:02:42]} 9... O-O
{[%clk 0:02:57.6]} 10. O-O {[%clk 0:02:41.3]} 10... b6 {[%clk 0:02:56.6]} 11.
Bg5 {[%clk 0:02:30.4]} 11... Re8 {[%clk 0:02:48.9]} 12. Ne4 {[%clk 0:02:16.9]}
12... Nf5 {[%clk 0:02:37.5]} 13. Bc2 {[%clk 0:01:46.2]} 13... h6 {[%clk
0:02:35.4]} 14. Bf6 {[%clk 0:01:42.2]} 14... Bxf6 {[%clk 0:02:35.3]} 15. Nxf6+
{[%clk 0:01:41.1]} 15... Kf8 {[%clk 0:02:32.3]} 16. Nxe8 {[%clk 0:01:40.9]}
16... Kxe8 {[%clk 0:02:33.1]} 17. Rad1 {[%clk 0:01:33.3]} 17... Ke7 {[%clk
0:02:24.9]} 18. Rfe1 {[%clk 0:01:26.4]} 18... Ba6 {[%clk 0:02:21.3]} 19. b3
{[%clk 0:01:24.2]} 19... Nd7 {[%clk 0:02:20.7]} 20. Bxf5 {[%clk 0:01:16.5]}
20... gxf5 {[%clk 0:02:15.7]} 21. Nd4 {[%clk 0:01:15.9]} 21... Bb7 {[%clk
0:02:05.3]} 22. b4 {[%clk 0:00:58.3]} 22... Rg8 {[%clk 0:02:04.7]} 23. Nf3
{[%clk 0:00:51.7]} 23... c5 {[%clk 0:01:59.4]} 24. Nh4 {[%clk 0:00:48.4]} 24...
cxb4 {[%clk 0:01:54.4]} 25. Rd2 {[%clk 0:00:41.9]} 25... a5 {[%clk 0:01:52.7]}
26. Red1 {[%clk 0:00:41.6]} 26... Bc6 {[%clk 0:01:51.2]} 27. Rd6 {[%clk
0:00:33.8]} 27... Ba4 {[%clk 0:01:40.9]} 28. Nf3 {[%clk 0:00:28.5]} 28... Rc8
{[%clk 0:01:36.1]} 29. Nd4 {[%clk 0:00:27.8]} 29... Rxc4 {[%clk 0:01:27.9]} 30.
Nf3 {[%clk 0:00:18.5]} 30... Bxd1 {[%clk 0:01:22.1]} 31. Rxd1 {[%clk 0:00:16.7]}
31... Rc5 {[%clk 0:01:21.5]} 32. Nh4 {[%clk 0:00:14.8]} 32... Nxe5 {[%clk
0:01:20.2]} 33. Nf3 {[%clk 0:00:12.7]} 33... Kf6 {[%clk 0:01:18.2]} 34. Nxe5
{[%clk 0:00:11.5]} 34... Kxe5 {[%clk 0:01:18.5]} 35. Re1+ {[%clk 0:00:11.9]}
35... Kf6 {[%clk 0:01:18.6]} 36. f4 {[%clk 0:00:11.5]} 36... Rc2 {[%clk
0:01:16.7]} 37. Ra1 {[%clk 0:00:07.6]} 37... b5 {[%clk 0:01:15.7]} 38. a3 {[%clk
0:00:06.6]} 38... b3 {[%clk 0:01:15.4]} 39. Rb1 {[%clk 0:00:05.6]} 39... b2
{[%clk 0:01:15.6]} 40. Kf1 {[%clk 0:00:02.3]} 40... Rc1+ {[%clk 0:01:16]} 0-1

[Event "Betsys MČR v online bleskovém šachu 2021"]
[Site "Chess.com"]
[Date "2021.04.17"]
[Round "11"]
[White "tucnak64"]
[Black "Krejcak"]
[Result "1-0"]
[WhiteElo "2135"]
[BlackElo "2005"]
[TimeControl "180+1"]
[EndTime "10:49:09 PDT"]
[Termination "Uživatel tucnak64 zvítězil po vzdání soupeře"]

1. d4 {[%clk 0:03:00.9]} 1... Nf6 {[%clk 0:02:59]} 2. Nf3 {[%clk 0:03:00.6]}
2... g6 {[%clk 0:02:58.9]} 3. Bf4 {[%clk 0:03:00.8]} 3... Bg7 {[%clk 0:02:59.2]}
4. e3 {[%clk 0:03:00.8]} 4... d6 {[%clk 0:02:59.7]} 5. h3 {[%clk 0:03:00.8]}
5... O-O {[%clk 0:03:00.2]} 6. Be2 {[%clk 0:03:00.7]} 6... b6 {[%clk 0:03:00.4]}
7. c4 {[%clk 0:02:59.6]} 7... Bb7 {[%clk 0:03:00.5]} 8. Nc3 {[%clk 0:02:59.2]}
8... Nbd7 {[%clk 0:03:00.6]} 9. O-O {[%clk 0:02:58.8]} 9... a6 {[%clk
0:02:54.5]} 10. d5 {[%clk 0:02:56.6]} 10... e6 {[%clk 0:02:51.4]} 11. e4 {[%clk
0:02:53.7]} 11... e5 {[%clk 0:02:50.7]} 12. Be3 {[%clk 0:02:49.9]} 12... Ne8
{[%clk 0:02:47.5]} 13. b4 {[%clk 0:02:39.2]} 13... f5 {[%clk 0:02:44.6]} 14. Ng5
{[%clk 0:02:38.6]} 14... Qe7 {[%clk 0:02:33.9]} 15. Ne6 {[%clk 0:02:37.6]} 15...
Rf7 {[%clk 0:02:33.1]} 16. f3 {[%clk 0:02:27.5]} 16... f4 {[%clk 0:02:30.6]} 17.
Bf2 {[%clk 0:02:27.2]} 17... Nf8 {[%clk 0:02:29]} 18. c5 {[%clk 0:02:16.8]}
18... Nxe6 {[%clk 0:02:23.8]} 19. dxe6 {[%clk 0:02:16.2]} 19... Qxe6 {[%clk
0:02:23.5]} 20. cxb6 {[%clk 0:02:15.8]} 20... cxb6 {[%clk 0:02:20.9]} 21. Bxb6
{[%clk 0:02:15.3]} 21... Rc8 {[%clk 0:02:14.3]} 22. Rc1 {[%clk 0:02:14.1]} 22...
Bf8 {[%clk 0:02:00.7]} 23. Qa4 {[%clk 0:02:08.2]} 23... Kh8 {[%clk 0:01:51.6]}
24. Nd5 {[%clk 0:02:02.6]} 24... Nf6 {[%clk 0:01:28.3]} 25. Rxc8 {[%clk
0:01:53.7]} 25... Qxc8 {[%clk 0:01:25.2]} 26. Nxf6 {[%clk 0:01:44.1]} 26... Rxf6
{[%clk 0:01:24.4]} 27. Qb3 {[%clk 0:01:42.4]} 27... Qc6 {[%clk 0:01:16.4]} 28.
Bd8 {[%clk 0:01:33.4]} 28... Bg7 {[%clk 0:00:55.6]} 29. Bxf6 {[%clk 0:01:21.4]}
29... Bxf6 {[%clk 0:00:55.7]} 30. Qf7 {[%clk 0:01:21]} 30... Bg7 {[%clk
0:00:52.1]} 31. Bc4 {[%clk 0:01:20.3]} 31... Qb6+ {[%clk 0:00:31.3]} 32. Kh2
{[%clk 0:01:15.9]} 32... d5 {[%clk 0:00:28.7]} 33. Bxd5 {[%clk 0:01:11.6]} 33...
Bxd5 {[%clk 0:00:27.2]} 34. Qxd5 {[%clk 0:01:11.3]} 34... Qxb4 {[%clk
0:00:25.8]} 35. Rc1 {[%clk 0:01:04.2]} 35... h5 {[%clk 0:00:20.1]} 36. Qf7
{[%clk 0:00:58.4]} 36... Qd2 {[%clk 0:00:17.3]} 37. Rc7 {[%clk 0:00:55.5]} 1-0

[Event "Betsys MČR v online bleskovém šachu 2021"]
[Site "Chess.com"]
[Date "2021.04.17"]
[Round "11"]
[White "adambelaska"]
[Black "ritchi12"]
[Result "0-1"]
[WhiteElo "1380"]
[BlackElo "1246"]
[TimeControl "180+1"]
[EndTime "10:49:13 PDT"]
[Termination "Uživatel ritchi12 zvítězil na čas"]

1. d4 {[%clk 0:02:27.9]} 1... d5 {[%clk 0:02:58.2]} 2. c4 {[%clk 0:02:25.4]}
2... dxc4 {[%clk 0:02:57.6]} 3. Nc3 {[%clk 0:02:21.4]} 3... Nf6 {[%clk
0:02:57.4]} 4. Nf3 {[%clk 0:02:19.9]} 4... e6 {[%clk 0:02:51.8]} 5. e4 {[%clk
0:02:17.6]} 5... Nc6 {[%clk 0:02:47.2]} 6. Bxc4 {[%clk 0:02:15.8]} 6... Bb4
{[%clk 0:02:44.9]} 7. Bg5 {[%clk 0:02:10]} 7... Bxc3+ {[%clk 0:02:43.3]} 8. bxc3
{[%clk 0:02:07.8]} 8... O-O {[%clk 0:02:43.1]} 9. e5 {[%clk 0:02:05.3]} 9... h6
{[%clk 0:02:35.3]} 10. exf6 {[%clk 0:01:53.7]} 10... Na5 {[%clk 0:02:30.3]} 11.
fxg7 {[%clk 0:01:45.8]} 11... f6 {[%clk 0:02:18.2]} 12. gxf8=Q+ {[%clk 0:01:44]}
12... Kxf8 {[%clk 0:02:18.3]} 13. Bxh6+ {[%clk 0:01:37.2]} 13... Kf7 {[%clk
0:02:17.3]} 14. Bb3 {[%clk 0:01:32.4]} 14... Nxb3 {[%clk 0:02:16.6]} 15. Qxb3
{[%clk 0:01:31.7]} 15... c6 {[%clk 0:02:12.5]} 16. O-O {[%clk 0:01:23.1]} 16...
b5 {[%clk 0:02:10.7]} 17. Bf4 {[%clk 0:01:19.7]} 17... Ba6 {[%clk 0:02:07.6]}
18. Be3 {[%clk 0:01:16.8]} 18... b4 {[%clk 0:02:05.9]} 19. Rfc1 {[%clk
0:01:11.8]} 19... Rb8 {[%clk 0:01:59.9]} 20. cxb4 {[%clk 0:01:07]} 20... Bb5
{[%clk 0:01:59.3]} 21. a4 {[%clk 0:00:50.8]} 21... Be2 {[%clk 0:01:52.4]} 22.
Rxc6 {[%clk 0:00:45.5]} 22... Bxf3 {[%clk 0:01:52.1]} 23. Qxe6+ {[%clk
0:00:41.9]} 23... Kg6 {[%clk 0:01:50.4]} 24. gxf3 {[%clk 0:00:40.8]} 24... Rxb4
{[%clk 0:01:45.3]} 25. Qg4+ {[%clk 0:00:35.3]} 25... Kf7 {[%clk 0:01:43]} 26. d5
{[%clk 0:00:29.8]} 26... Rxg4+ {[%clk 0:01:41.4]} 27. fxg4 {[%clk 0:00:29.9]}
27... Qxd5 {[%clk 0:01:41.2]} 28. Rc7+ {[%clk 0:00:28.7]} 28... Kg6 {[%clk
0:01:40.3]} 29. Rxa7 {[%clk 0:00:25.8]} 29... Qc4 {[%clk 0:01:26.6]} 30. a5
{[%clk 0:00:20.4]} 30... Qxg4+ {[%clk 0:01:26]} 31. Kf1 {[%clk 0:00:18.4]} 31...
Qh3+ {[%clk 0:01:25.1]} 32. Ke2 {[%clk 0:00:14.9]} 32... Qg4+ {[%clk 0:01:24.4]}
33. Kf1 {[%clk 0:00:13]} 33... Qc4+ {[%clk 0:01:23.8]} 34. Kg2 {[%clk
0:00:10.7]} 34... Qe4+ {[%clk 0:01:20.9]} 35. Kf1 {[%clk 0:00:08.6]} 35... Qd3+
{[%clk 0:01:20.6]} 36. Kg1 {[%clk 0:00:01.9]} 36... Qf5 {[%clk 0:01:14.6]} 0-1

[Event "Betsys MČR v online bleskovém šachu 2021"]
[Site "Chess.com"]
[Date "2021.04.17"]
[Round "11"]
[White "berny643"]
[Black "Trener-Pokrocili"]
[Result "1-0"]
[WhiteElo "2583"]
[BlackElo "2272"]
[TimeControl "180+1"]
[EndTime "10:49:16 PDT"]
[Termination "Uživatel berny643 zvítězil po vzdání soupeře"]

1. d4 {[%clk 0:02:55.6]} 1... Nf6 {[%clk 0:02:59.3]} 2. c4 {[%clk 0:02:53.6]}
2... c5 {[%clk 0:02:59.6]} 3. d5 {[%clk 0:02:52.2]} 3... b5 {[%clk 0:02:59.7]}
4. cxb5 {[%clk 0:02:48.4]} 4... a6 {[%clk 0:03:00]} 5. e3 {[%clk 0:02:47.7]}
5... Bb7 {[%clk 0:02:53.1]} 6. Nc3 {[%clk 0:02:46.4]} 6... axb5 {[%clk
0:02:52.6]} 7. Bxb5 {[%clk 0:02:45.5]} 7... Qa5 {[%clk 0:02:52.1]} 8. Ne2 {[%clk
0:02:41.9]} 8... Nxd5 {[%clk 0:02:47.2]} 9. O-O {[%clk 0:02:40.9]} 9... Nxc3
{[%clk 0:02:43.8]} 10. Nxc3 {[%clk 0:02:40.2]} 10... e6 {[%clk 0:02:40.2]} 11.
Bd2 {[%clk 0:02:37.2]} 11... Be7 {[%clk 0:02:36.2]} 12. a4 {[%clk 0:02:31.8]}
12... O-O {[%clk 0:02:27.5]} 13. Nd5 {[%clk 0:02:23.8]} 13... Qd8 {[%clk
0:02:22.2]} 14. Nxe7+ {[%clk 0:02:23.7]} 14... Qxe7 {[%clk 0:02:22.3]} 15. Rc1
{[%clk 0:02:16.3]} 15... d6 {[%clk 0:02:21.2]} 16. b4 {[%clk 0:02:15.9]} 16...
Nd7 {[%clk 0:02:16.3]} 17. Bxd7 {[%clk 0:01:56.3]} 17... Qxd7 {[%clk 0:02:15.1]}
18. b5 {[%clk 0:01:54.2]} 18... Rfb8 {[%clk 0:02:04.8]} 19. Bc3 {[%clk
0:01:52.6]} 19... e5 {[%clk 0:02:03.3]} 20. Bxe5 {[%clk 0:01:40.5]} 20... Rd8
{[%clk 0:01:57.5]} 21. Bg3 {[%clk 0:01:37.5]} 21... h5 {[%clk 0:01:54.8]} 22. f3
{[%clk 0:01:35.3]} 22... Qe7 {[%clk 0:01:49.2]} 23. e4 {[%clk 0:01:33.8]} 23...
h4 {[%clk 0:01:47.2]} 24. Bf2 {[%clk 0:01:30.5]} 24... h3 {[%clk 0:01:43.2]} 25.
gxh3 {[%clk 0:01:30.4]} 25... f5 {[%clk 0:01:39.3]} 26. exf5 {[%clk 0:01:23.2]}
26... Qg5+ {[%clk 0:01:30.2]} 27. Bg3 {[%clk 0:01:20]} 27... Qxf5 {[%clk
0:01:28.3]} 28. Rc4 {[%clk 0:01:07.2]} 28... d5 {[%clk 0:01:14.1]} 29. Rf4
{[%clk 0:01:04]} 29... Qxh3 {[%clk 0:01:12.8]} 30. Rg4 {[%clk 0:01:02.2]} 30...
d4 {[%clk 0:01:04.1]} 31. Re1 {[%clk 0:00:57.2]} 31... Rf8 {[%clk 0:00:57.5]}
32. Re7 {[%clk 0:00:46.1]} 32... Bxf3 {[%clk 0:00:38.1]} 33. Qb3+ {[%clk
0:00:38.4]} 1-0

[Event "Betsys MČR v online bleskovém šachu 2021"]
[Site "Chess.com"]
[Date "2021.04.17"]
[Round "11"]
[White "dino5517"]
[Black "CzechMerlin"]
[Result "0-1"]
[WhiteElo "1392"]
[BlackElo "1662"]
[TimeControl "180+1"]
[EndTime "10:49:16 PDT"]
[Termination "Uživatel CzechMerlin zvítězil matem"]

1. e4 {[%clk 0:02:59.5]} 1... e5 {[%clk 0:02:55.7]} 2. Nf3 {[%clk 0:02:57.4]}
2... d6 {[%clk 0:02:55.8]} 3. d4 {[%clk 0:02:55.4]} 3... f5 {[%clk 0:02:55.5]}
4. Bg5 {[%clk 0:02:46.9]} 4... Be7 {[%clk 0:02:54]} 5. Bxe7 {[%clk 0:02:45.2]}
5... Qxe7 {[%clk 0:02:54.9]} 6. dxe5 {[%clk 0:02:44.3]} 6... fxe4 {[%clk
0:02:53.5]} 7. Nfd2 {[%clk 0:02:41.1]} 7... d5 {[%clk 0:02:53.2]} 8. Qe2 {[%clk
0:02:36.1]} 8... Qxe5 {[%clk 0:02:48.8]} 9. Nc3 {[%clk 0:02:36.3]} 9... Nf6
{[%clk 0:02:48.1]} 10. O-O-O {[%clk 0:02:30.8]} 10... O-O {[%clk 0:02:47]} 11.
f3 {[%clk 0:02:22.9]} 11... e3 {[%clk 0:02:38]} 12. Nb3 {[%clk 0:02:17.8]} 12...
Bf5 {[%clk 0:02:15.3]} 13. Qb5 {[%clk 0:02:11.7]} 13... b6 {[%clk 0:00:42.8]}
14. Bc4 {[%clk 0:02:04.7]} 14... c6 {[%clk 0:00:34.9]} 15. Qb4 {[%clk
0:01:57.4]} 15... c5 {[%clk 0:00:32.7]} 16. Qb5 {[%clk 0:01:32.2]} 16... Bd7
{[%clk 0:00:26.8]} 17. Qxd7 {[%clk 0:01:19.4]} 17... Nbxd7 {[%clk 0:00:25.5]}
18. Nxd5 {[%clk 0:01:18]} 18... Kh8 {[%clk 0:00:22.8]} 19. Rhe1 {[%clk
0:01:09.6]} 19... Qxh2 {[%clk 0:00:20.1]} 20. Rh1 {[%clk 0:01:03.2]} 20... Qxg2
{[%clk 0:00:19.7]} 21. Nxf6 {[%clk 0:00:59.8]} 21... Nxf6 {[%clk 0:00:18.8]} 22.
Be6 {[%clk 0:00:52.7]} 22... Qxf3 {[%clk 0:00:18.2]} 23. Rdf1 {[%clk 0:00:47.8]}
23... Qe4 {[%clk 0:00:16.9]} 24. Bf5 {[%clk 0:00:44.7]} 24... Qe5 {[%clk
0:00:15.6]} 25. Rh5 {[%clk 0:00:33.2]} 25... e2 {[%clk 0:00:14.4]} 26. Rfh1
{[%clk 0:00:27.8]} 26... e1=Q+ {[%clk 0:00:11.8]} 27. Rxe1 {[%clk 0:00:25.5]}
27... Qxe1# {[%clk 0:00:12.6]} 0-1

[Event "Betsys MČR v online bleskovém šachu 2021"]
[Site "Chess.com"]
[Date "2021.04.17"]
[Round "11"]
[White "Rognort"]
[Black "Tynano"]
[Result "0-1"]
[WhiteElo "1786"]
[BlackElo "1969"]
[TimeControl "180+1"]
[EndTime "10:49:18 PDT"]
[Termination "Uživatel Tynano zvítězil po vzdání soupeře"]

1. e4 {[%clk 0:03:00.9]} 1... e5 {[%clk 0:02:59.8]} 2. Nf3 {[%clk 0:03:00.5]}
2... Nc6 {[%clk 0:02:58.4]} 3. Bc4 {[%clk 0:02:59.8]} 3... Nf6 {[%clk
0:02:58.2]} 4. d3 {[%clk 0:02:58.7]} 4... Bc5 {[%clk 0:02:55.9]} 5. c3 {[%clk
0:02:57]} 5... d5 {[%clk 0:02:55.3]} 6. exd5 {[%clk 0:02:53]} 6... Nxd5 {[%clk
0:02:55.6]} 7. O-O {[%clk 0:02:45.5]} 7... O-O {[%clk 0:02:55.3]} 8. Bg5 {[%clk
0:02:42.2]} 8... f6 {[%clk 0:02:46.5]} 9. Bd2 {[%clk 0:02:41.4]} 9... Kh8 {[%clk
0:02:45.7]} 10. b4 {[%clk 0:02:34.6]} 10... Bb6 {[%clk 0:02:44.9]} 11. a4 {[%clk
0:02:34.7]} 11... a5 {[%clk 0:02:42.8]} 12. b5 {[%clk 0:02:31.1]} 12... Nce7
{[%clk 0:02:42.8]} 13. Kh1 {[%clk 0:02:23.2]} 13... Ng6 {[%clk 0:02:41.5]} 14.
Na3 {[%clk 0:01:39]} 14... Ndf4 {[%clk 0:02:39]} 15. Be3 {[%clk 0:01:35.5]}
15... Bg4 {[%clk 0:02:36.5]} 16. h3 {[%clk 0:01:21.3]} 16... Bd7 {[%clk
0:02:16.3]} 17. Ra2 {[%clk 0:01:10.8]} 17... Qc8 {[%clk 0:02:15.3]} 18. Ng1
{[%clk 0:01:07]} 18... Bxe3 {[%clk 0:01:50.9]} 19. fxe3 {[%clk 0:01:07.9]} 19...
Nxh3 {[%clk 0:01:46.1]} 20. Nxh3 {[%clk 0:01:02]} 20... Bxh3 {[%clk 0:01:46]}
21. Qf3 {[%clk 0:01:01]} 21... Bg4 {[%clk 0:01:44.8]} 22. Qg3 {[%clk 0:00:59.2]}
22... h5 {[%clk 0:01:42.5]} 23. Raf2 {[%clk 0:00:47.5]} 23... f5 {[%clk
0:01:41.3]} 24. d4 {[%clk 0:00:43.2]} 24... f4 {[%clk 0:01:40.2]} 25. exf4
{[%clk 0:00:41.4]} 25... exf4 {[%clk 0:01:41.1]} 26. Qd3 {[%clk 0:00:41.3]}
26... Rf6 {[%clk 0:01:35.1]} 27. Bd5 {[%clk 0:00:32.8]} 27... Qf8 {[%clk
0:01:33.9]} 28. Be4 {[%clk 0:00:32.5]} 28... Nh4 {[%clk 0:01:18.6]} 29. Nc4
{[%clk 0:00:32.6]} 29... Re8 {[%clk 0:01:07]} 30. Ne5 {[%clk 0:00:32.7]} 30...
g5 {[%clk 0:01:03]} 31. Nxg4 {[%clk 0:00:23.9]} 31... hxg4 {[%clk 0:01:02.7]}
32. d5 {[%clk 0:00:19.6]} 32... g3 {[%clk 0:01:02]} 33. Re2 {[%clk 0:00:18.9]}
33... Qh6 {[%clk 0:01:01.1]} 34. Kg1 {[%clk 0:00:18.9]} 34... Nf5 {[%clk
0:00:52.6]} 0-1

[Event "Betsys MČR v online bleskovém šachu 2021"]
[Site "Chess.com"]
[Date "2021.04.17"]
[Round "11"]
[White "nw_tynka"]
[Black "KdybyNecoTakNic"]
[Result "0-1"]
[WhiteElo "2181"]
[BlackElo "2322"]
[TimeControl "180+1"]
[EndTime "10:49:20 PDT"]
[Termination "Uživatel KdybyNecoTakNic zvítězil na čas"]

1. e4 {[%clk 0:03:00.9]} 1... e6 {[%clk 0:03:00]} 2. d4 {[%clk 0:03:00.5]} 2...
d5 {[%clk 0:03:00.3]} 3. Nc3 {[%clk 0:03:00.7]} 3... Bb4 {[%clk 0:02:59.4]} 4.
Bd3 {[%clk 0:03:00.3]} 4... dxe4 {[%clk 0:02:46.6]} 5. Bxe4 {[%clk 0:02:59.7]}
5... Nf6 {[%clk 0:02:46.6]} 6. Bf3 {[%clk 0:02:59.4]} 6... c5 {[%clk 0:02:42.1]}
7. Ne2 {[%clk 0:02:57.1]} 7... cxd4 {[%clk 0:02:36.3]} 8. Nxd4 {[%clk
0:02:42.2]} 8... Nbd7 {[%clk 0:02:27.4]} 9. O-O {[%clk 0:02:37.3]} 9... O-O
{[%clk 0:02:27.2]} 10. Ndb5 {[%clk 0:01:55.8]} 10... a6 {[%clk 0:02:06.8]} 11.
Nd6 {[%clk 0:01:54.4]} 11... Ne5 {[%clk 0:02:03.4]} 12. Nxc8 {[%clk 0:01:25.3]}
12... Nxf3+ {[%clk 0:01:55]} 13. Qxf3 {[%clk 0:01:23.9]} 13... Qxc8 {[%clk
0:01:47.1]} 14. Bg5 {[%clk 0:01:14.5]} 14... Bxc3 {[%clk 0:01:42.5]} 15. bxc3
{[%clk 0:01:14.1]} 15... Nd5 {[%clk 0:01:42.3]} 16. Rab1 {[%clk 0:01:03.1]}
16... b5 {[%clk 0:01:39.8]} 17. Bd2 {[%clk 0:00:48.5]} 17... Qc4 {[%clk
0:01:38.9]} 18. Rb3 {[%clk 0:00:40.6]} 18... Rfd8 {[%clk 0:01:24.6]} 19. Qd3
{[%clk 0:00:30.7]} 19... Rac8 {[%clk 0:01:17]} 20. Rd1 {[%clk 0:00:17.1]} 20...
Nf6 {[%clk 0:01:08.7]} 21. Qxc4 {[%clk 0:00:15.3]} 21... Rxc4 {[%clk 0:01:01.1]}
22. Rbb1 {[%clk 0:00:14.6]} 22... Kf8 {[%clk 0:00:55.2]} 23. f3 {[%clk 0:00:14]}
23... Ke7 {[%clk 0:00:53.7]} 24. Kf2 {[%clk 0:00:13.6]} 24... h6 {[%clk
0:00:51.2]} 25. Ke2 {[%clk 0:00:13]} 25... Nd5 {[%clk 0:00:51]} 26. g3 {[%clk
0:00:11]} 26... Rxc3 {[%clk 0:00:45.3]} 27. Rb2 {[%clk 0:00:07.8]} 27... Rc4
{[%clk 0:00:43.6]} 28. Be1 {[%clk 0:00:06.6]} 28... Rdc8 {[%clk 0:00:44.2]} 29.
Rd2 {[%clk 0:00:05.2]} 29... Ra4 {[%clk 0:00:44.1]} 30. Rd1 {[%clk 0:00:03]}
30... Rcc4 {[%clk 0:00:42.5]} 0-1

[Event "Betsys MČR v online bleskovém šachu 2021"]
[Site "Chess.com"]
[Date "2021.04.17"]
[Round "11"]
[White "Listro33"]
[Black "jankrelina07"]
[Result "1-0"]
[WhiteElo "1868"]
[BlackElo "1620"]
[TimeControl "180+1"]
[EndTime "10:49:20 PDT"]
[Termination "Uživatel Listro33 zvítězil po vzdání soupeře"]

1. d4 {[%clk 0:03:00.9]} 1... Nf6 {[%clk 0:02:59.1]} 2. Bf4 {[%clk 0:03:01.2]}
2... g6 {[%clk 0:02:58.9]} 3. e3 {[%clk 0:03:00.8]} 3... Bg7 {[%clk 0:02:58.7]}
4. Nf3 {[%clk 0:02:59.9]} 4... d6 {[%clk 0:02:58.8]} 5. Be2 {[%clk 0:02:56.9]}
5... Nbd7 {[%clk 0:02:58.8]} 6. h3 {[%clk 0:02:55.5]} 6... O-O {[%clk 0:02:59]}
7. O-O {[%clk 0:02:54.3]} 7... Re8 {[%clk 0:02:58.5]} 8. Bh2 {[%clk 0:02:36.8]}
8... b6 {[%clk 0:02:56.6]} 9. c3 {[%clk 0:02:28.5]} 9... Bb7 {[%clk 0:02:55.6]}
10. Nbd2 {[%clk 0:02:26.2]} 10... e5 {[%clk 0:02:46]} 11. a4 {[%clk 0:02:26.1]}
11... exd4 {[%clk 0:02:38.3]} 12. cxd4 {[%clk 0:02:21.1]} 12... Nb8 {[%clk
0:02:29.7]} 13. b4 {[%clk 0:02:02.5]} 13... Nc6 {[%clk 0:02:19.2]} 14. b5 {[%clk
0:02:01.3]} 14... Nb4 {[%clk 0:02:15.3]} 15. Qb3 {[%clk 0:01:52.4]} 15... Nbd5
{[%clk 0:02:11.9]} 16. Bc4 {[%clk 0:01:43.2]} 16... Ne7 {[%clk 0:02:03]} 17.
Bxf7+ {[%clk 0:01:40]} 17... Kh8 {[%clk 0:02:00.6]} 18. Bxe8 {[%clk 0:01:37.5]}
18... Qxe8 {[%clk 0:02:00.3]} 19. Rac1 {[%clk 0:01:33.4]} 19... Qd7 {[%clk
0:01:58.4]} 20. Rc2 {[%clk 0:01:29.2]} 20... Bxf3 {[%clk 0:01:53.3]} 21. Nxf3
{[%clk 0:01:27.9]} 21... Rc8 {[%clk 0:01:47.3]} 22. Rfc1 {[%clk 0:01:17.3]}
22... h6 {[%clk 0:01:39.1]} 23. Qf7 {[%clk 0:01:00.5]} 23... g5 {[%clk
0:01:28.6]} 24. Bg3 {[%clk 0:00:28.6]} 24... Qd8 {[%clk 0:01:26.8]} 25. Nh2
{[%clk 0:00:20.5]} 25... Ne4 {[%clk 0:01:23.4]} 26. Ng4 {[%clk 0:00:19.4]} 26...
Nxg3 {[%clk 0:01:21.4]} 27. fxg3 {[%clk 0:00:20.3]} 27... Ng8 {[%clk 0:01:11.2]}
28. Rxc7 {[%clk 0:00:17.6]} 28... Rxc7 {[%clk 0:01:10.6]} 29. Rxc7 {[%clk
0:00:16.1]} 29... Qf8 {[%clk 0:01:02.8]} 30. Qxf8 {[%clk 0:00:14.2]} 30... Bxf8
{[%clk 0:01:02.6]} 31. Rxa7 {[%clk 0:00:14.4]} 31... Ne7 {[%clk 0:01:02.2]} 32.
Rb7 {[%clk 0:00:13]} 32... Nd5 {[%clk 0:01:01.4]} 33. e4 {[%clk 0:00:12.8]}
33... Nc3 {[%clk 0:01:00.9]} 34. Rxb6 {[%clk 0:00:11.2]} 34... Nxa4 {[%clk
0:01:00.8]} 35. Ra6 {[%clk 0:00:10.5]} 35... Nc3 {[%clk 0:01:00]} 36. b6 {[%clk
0:00:09.5]} 36... Nxe4 {[%clk 0:00:51.4]} 37. b7 {[%clk 0:00:09]} 1-0